[Event "Titled Tuesday Blitz May 10 Late 2022"]
[White "Zhou, Qiyu"]
[Black "Jakubowski, Krzysztof"]
[WhiteFideId "505161"]
[BlackFideId "1112848"]
[WhiteElo "1925"]
[BlackElo "2365"]
[Result "1-0"]
[Round "03"]
[TimeControl "180+1"]
[Date "2022.05.11"]
[WhiteClock "0:00:06"]
[BlackClock "0:00:02"]

1. e4 {[%clk 0:03:00]}  c5 {[%clk 0:02:57]} 2. Nf3 {[%clk 0:02:59]}  e6 {[%clk 0:02:56]} 3. d4 {[%clk 0:02:59]}  cxd4 {[%clk 0:02:56]} 4. Nxd4 {[%clk 0:03:00]}  Nc6 {[%clk 0:02:56]} 5. Nc3 {[%clk 0:02:59]}  Qc7 {[%clk 0:02:56]} 6. Be3 {[%clk 0:02:57]}  a6 {[%clk 0:02:55]} 7. Qd2 {[%clk 0:02:52]}  Nf6 {[%clk 0:02:53]} 8. f4 {[%clk 0:02:49]}  Bb4 {[%clk 0:02:39]} 9. Bd3 {[%clk 0:02:45]}  d5 {[%clk 0:02:01]} 10. e5 {[%clk 0:02:42]}  Nd7 {[%clk 0:01:53]} 11. a3 {[%clk 0:02:18]}  Ba5 {[%clk 0:01:47]} 12. O-O {[%clk 0:01:59]}  g6 {[%clk 0:01:46]} 13. Qf2 {[%clk 0:01:46]}  Bxc3 {[%clk 0:01:42]} 14. bxc3 {[%clk 0:01:47]}  Na5 {[%clk 0:01:41]} 15. Ne2 {[%clk 0:01:22]}  Nc4 {[%clk 0:01:30]} 16. Bd4 {[%clk 0:01:20]}  Ndb6 {[%clk 0:01:11]} 17. a4 {[%clk 0:01:12]}  Bd7 {[%clk 0:01:09]} 18. a5 {[%clk 0:01:04]}  Na4 {[%clk 0:01:08]} 19. Rfb1 {[%clk 0:00:53]}  Bb5 {[%clk 0:00:45]} 20. Rb4 {[%clk 0:00:46]}  Qxa5 {[%clk 0:00:30]} 21. Nc1 {[%clk 0:00:24]}  Qc7 {[%clk 0:00:18]} 22. Rbxa4 {[%clk 0:00:20]}  Bxa4 {[%clk 0:00:19]} 23. Rxa4 {[%clk 0:00:20]}  O-O {[%clk 0:00:14]} 24. Ra1 {[%clk 0:00:17]}  a5 {[%clk 0:00:12]} 25. Ne2 {[%clk 0:00:09]}  a4 {[%clk 0:00:12]} 26. Qh4 {[%clk 0:00:09]}  Kh8 {[%clk 0:00:07]} 27. Ng3 {[%clk 0:00:08]}  Rg8 {[%clk 0:00:07]} 28. Qf6+ {[%clk 0:00:08]}  Rg7 {[%clk 0:00:07]} 29. Ne2 {[%clk 0:00:04]}  a3 {[%clk 0:00:07]} 30. Qh4 {[%clk 0:00:02]}  Qd8 {[%clk 0:00:06]} 31. Qe1 {[%clk 0:00:02]}  b5 {[%clk 0:00:05]} 32. Bc5 {[%clk 0:00:02]}  Qc7 {[%clk 0:00:05]} 33. Bb4 {[%clk 0:00:02]}  Rgg8 {[%clk 0:00:05]} 34. Nd4 {[%clk 0:00:03]}  Qb6 {[%clk 0:00:03]} 35. Qh4 {[%clk 0:00:03]}  Rg7 {[%clk 0:00:03]} 36. Be7 {[%clk 0:00:03]}  Kg8 {[%clk 0:00:02]} 37. Bf6 {[%clk 0:00:04]}  b4 {[%clk 0:00:02]} 38. Qh6 {[%clk 0:00:04]}  Kf8 {[%clk 0:00:01]} 39. Qxg7+ {[%clk 0:00:04]}  Ke8 {[%clk 0:00:02]} 40. Qg8+ {[%clk 0:00:05]}  Kd7 {[%clk 0:00:02]} 41. Qxf7+ {[%clk 0:00:05]}  Kc8 {[%clk 0:00:02]} 42. Qe8+ {[%clk 0:00:06]}  Kb7 {[%clk 0:00:02]} 43. Qd7+ {[%clk 0:00:06]}  Qc7 {[%clk 0:00:02]} 44. Qxc7+ {[%clk 0:00:06]}  Kxc7 {[%clk 0:00:03]} 45. cxb4 {[%clk 0:00:06]}  Nb2 {[%clk 0:00:02]} 46. Nxe6+ {[%clk 0:00:06]}  Kb6 {[%clk 0:00:01]} 47. Nc5 {[%clk 0:00:07]}  Kc6 {[%clk 0:00:01]} 48. e6 {[%clk 0:00:06]}  d4 {[%clk 0:00:02]} 49. Bxd4 {[%clk 0:00:06]} 1-0


[Site "https://www.chess.com"]

[Event "Titled Tuesday Blitz May 10 Late 2022"]
[White "Alekseenko, Kirill"]
[Black "Nakamura, Hikaru"]
[WhiteFideId "4135539"]
[BlackFideId "2016192"]
[WhiteElo "2682"]
[BlackElo "2850"]
[Result "0-1"]
[Round "04"]
[TimeControl "180+1"]
[Date "2022.05.10"]
[WhiteClock "0:00:14"]
[BlackClock "0:00:35"]

1. e4 {[%clk 0:03:00]}  c6 {[%clk 0:02:56]} 2. d4 {[%clk 0:02:59]}  d5 {[%clk 0:02:56]} 3. e5 {[%clk 0:03:00]}  Bf5 {[%clk 0:02:56]} 4. Nf3 {[%clk 0:02:59]}  e6 {[%clk 0:02:56]} 5. Be2 {[%clk 0:03:00]}  Ne7 {[%clk 0:02:56]} 6. O-O {[%clk 0:03:00]}  h6 {[%clk 0:02:55]} 7. Nbd2 {[%clk 0:02:57]}  Nd7 {[%clk 0:02:55]} 8. Nb3 {[%clk 0:02:53]}  Qc7 {[%clk 0:02:53]} 9. Bd2 {[%clk 0:02:50]}  Bh7 {[%clk 0:02:41]} 10. a4 {[%clk 0:02:49]}  Ng6 {[%clk 0:02:38]} 11. h4 {[%clk 0:02:24]}  Be7 {[%clk 0:02:32]} 12. h5 {[%clk 0:02:24]}  Ngf8 {[%clk 0:02:32]} 13. Ba5 {[%clk 0:02:04]}  b6 {[%clk 0:02:25]} 14. Bd2 {[%clk 0:02:04]}  g5 {[%clk 0:02:18]} 15. c4 {[%clk 0:01:59]}  Be4 {[%clk 0:02:11]} 16. a5 {[%clk 0:01:51]}  dxc4 {[%clk 0:02:08]} 17. Bxc4 {[%clk 0:01:39]}  b5 {[%clk 0:02:07]} 18. Be2 {[%clk 0:01:36]}  Bd5 {[%clk 0:02:04]} 19. Rc1 {[%clk 0:01:34]}  a6 {[%clk 0:02:03]} 20. Bd3 {[%clk 0:01:33]}  Rd8 {[%clk 0:01:51]} 21. Re1 {[%clk 0:01:32]}  c5 {[%clk 0:01:47]} 22. dxc5 {[%clk 0:01:22]}  Bxb3 {[%clk 0:01:41]} 23. Qxb3 {[%clk 0:01:20]}  Nxc5 {[%clk 0:01:41]} 24. Qc2 {[%clk 0:01:07]}  Qd7 {[%clk 0:01:16]} 25. Be4 {[%clk 0:00:52]}  g4 {[%clk 0:01:16]} 26. Nh2 {[%clk 0:00:48]}  Nxe4 {[%clk 0:01:12]} 27. Qxe4 {[%clk 0:00:48]}  Qxd2 {[%clk 0:01:12]} 28. Qc6+ {[%clk 0:00:47]}  Nd7 {[%clk 0:01:06]} 29. Nxg4 {[%clk 0:00:46]}  Qg5 {[%clk 0:01:01]} 30. f3 {[%clk 0:00:43]}  O-O {[%clk 0:00:59]} 31. Qxa6 {[%clk 0:00:43]}  Bc5+ {[%clk 0:00:56]} 32. Kf1 {[%clk 0:00:39]}  Qh4 {[%clk 0:00:52]} 33. Ke2 {[%clk 0:00:19]}  Nxe5 {[%clk 0:00:35]} 34. Rxc5 {[%clk 0:00:19]}  Nxg4 {[%clk 0:00:35]} 35. fxg4 {[%clk 0:00:19]}  Qxg4+ {[%clk 0:00:35]} 36. Kf1 {[%clk 0:00:14]}  Qf4+ {[%clk 0:00:35]} 0-1


[Site "https://www.chess.com"]

[Event "Titled Tuesday Blitz May 10 Late 2022"]
[White "Arabidze, Meri"]
[Black "Kim, Sergey"]
[WhiteFideId "13604040"]
[BlackFideId "13700570"]
[WhiteElo "2634"]
[BlackElo "2478"]
[Result "1-0"]
[Round "04"]
[TimeControl "180+1"]
[Date "2022.05.11"]
[WhiteClock "0:00:15"]
[BlackClock "0:00:40"]

1. Nf3 {[%clk 0:03:00]}  Nf6 {[%clk 0:02:59]} 2. g3 {[%clk 0:03:00]}  g6 {[%clk 0:02:59]} 3. Bg2 {[%clk 0:03:01]}  Bg7 {[%clk 0:03:00]} 4. O-O {[%clk 0:03:01]}  d6 {[%clk 0:03:01]} 5. d4 {[%clk 0:03:01]}  O-O {[%clk 0:03:02]} 6. a4 {[%clk 0:03:01]}  a5 {[%clk 0:03:02]} 7. Re1 {[%clk 0:03:00]}  c6 {[%clk 0:03:00]} 8. e4 {[%clk 0:02:59]}  Qc7 {[%clk 0:03:01]} 9. Nc3 {[%clk 0:02:57]}  e5 {[%clk 0:03:00]} 10. Be3 {[%clk 0:02:54]}  Na6 {[%clk 0:02:59]} 11. h3 {[%clk 0:02:44]}  Nb4 {[%clk 0:02:55]} 12. Qc1 {[%clk 0:02:29]}  Rd8 {[%clk 0:02:46]} 13. Bg5 {[%clk 0:02:28]}  Be6 {[%clk 0:02:42]} 14. Rd1 {[%clk 0:02:06]}  Bc4 {[%clk 0:02:30]} 15. b3 {[%clk 0:01:53]}  Ba6 {[%clk 0:02:25]} 16. Kh2 {[%clk 0:01:30]}  Re8 {[%clk 0:02:23]} 17. dxe5 {[%clk 0:01:29]}  dxe5 {[%clk 0:02:23]} 18. Be3 {[%clk 0:01:22]}  Rad8 {[%clk 0:02:14]} 19. Nd2 {[%clk 0:01:21]}  b6 {[%clk 0:02:08]} 20. Bf1 {[%clk 0:01:17]}  Bxf1 {[%clk 0:02:03]} 21. Rxf1 {[%clk 0:01:18]}  c5 {[%clk 0:01:54]} 22. Nc4 {[%clk 0:01:16]}  Qb7 {[%clk 0:01:47]} 23. f3 {[%clk 0:01:05]}  Nc6 {[%clk 0:01:46]} 24. Nb5 {[%clk 0:01:02]}  Re6 {[%clk 0:01:29]} 25. c3 {[%clk 0:01:00]}  Ne8 {[%clk 0:01:21]} 26. Rd1 {[%clk 0:00:57]}  Re7 {[%clk 0:01:16]} 27. Ra2 {[%clk 0:00:29]}  Red7 {[%clk 0:01:11]} 28. Rad2 {[%clk 0:00:28]}  Qc8 {[%clk 0:01:09]} 29. Nxb6 {[%clk 0:00:26]}  Rxd2+ {[%clk 0:01:06]} 30. Rxd2 {[%clk 0:00:26]}  Qe6 {[%clk 0:00:59]} 31. Rxd8 {[%clk 0:00:23]}  Nxd8 {[%clk 0:00:59]} 32. Nc4 {[%clk 0:00:23]}  Nc6 {[%clk 0:00:55]} 33. Qd2 {[%clk 0:00:23]}  h5 {[%clk 0:00:49]} 34. Qd5 {[%clk 0:00:21]}  Qc8 {[%clk 0:00:43]} 35. Qxc5 {[%clk 0:00:18]}  Qd7 {[%clk 0:00:43]} 36. Qd5 {[%clk 0:00:18]}  Qc8 {[%clk 0:00:43]} 37. Nb6 {[%clk 0:00:15]}  Qb7 {[%clk 0:00:40]} 38. Qd7 {[%clk 0:00:15]} 1-0


[Site "https://www.chess.com"]

[Event "Titled Tuesday Blitz May 10 Late 2022"]
[White "Atanasov, Anthony"]
[Black "Jarovinsky, Alexey"]
[WhiteFideId "2623897"]
[BlackFideId "14115131"]
[WhiteElo "2505"]
[BlackElo "2685"]
[Result "0-1"]
[Round "04"]
[TimeControl "180+1"]
[Date "2022.05.11"]
[WhiteClock "0:02:07"]
[BlackClock "0:02:01"]

1. d4 {[%clk 0:03:00]}  Nc6 {[%clk 0:03:00]} 2. d5 {[%clk 0:03:00]}  Nb8 {[%clk 0:03:00]} 3. e4 {[%clk 0:03:00]}  d6 {[%clk 0:02:58]} 4. Nf3 {[%clk 0:02:59]}  Bg4 {[%clk 0:02:56]} 5. Nc3 {[%clk 0:02:58]}  Nf6 {[%clk 0:02:53]} 6. h3 {[%clk 0:02:56]}  Bxf3 {[%clk 0:02:52]} 7. Qxf3 {[%clk 0:02:57]}  Nbd7 {[%clk 0:02:52]} 8. Be3 {[%clk 0:02:53]}  g6 {[%clk 0:02:49]} 9. O-O-O {[%clk 0:02:49]}  Bg7 {[%clk 0:02:49]} 10. g4 {[%clk 0:02:48]}  c5 {[%clk 0:02:47]} 11. dxc6 {[%clk 0:02:44]}  bxc6 {[%clk 0:02:48]} 12. Bg2 {[%clk 0:02:36]}  Qa5 {[%clk 0:02:45]} 13. Qe2 {[%clk 0:02:28]}  Rb8 {[%clk 0:02:42]} 14. f4 {[%clk 0:02:23]}  O-O {[%clk 0:02:28]} 15. Qc4 {[%clk 0:02:18]}  Rb4 {[%clk 0:02:13]} 16. Qxc6 {[%clk 0:02:14]}  Nb8 {[%clk 0:02:12]} 17. Rd5 {[%clk 0:02:10]}  Nxc6 {[%clk 0:02:10]} 18. Rxa5 {[%clk 0:02:09]}  Nxa5 {[%clk 0:02:11]} 19. a3 {[%clk 0:02:08]}  Rxb2 {[%clk 0:02:01]} 20. Kxb2 {[%clk 0:02:07]}  Nc4+ {[%clk 0:02:01]} 0-1


[Site "https://www.chess.com"]

[Event "Titled Tuesday Blitz May 10 Late 2022"]
[White "Bas Mas, Jose Joaquin"]
[Black "Sloan, Julia Elizabeth"]
[WhiteFideId "22219064"]
[BlackFideId "2018950"]
[WhiteElo "2233"]
[BlackElo "2113"]
[Result "1-0"]
[Round "04"]
[TimeControl "180+1"]
[Date "2022.05.11"]
[WhiteClock "0:01:56"]
[BlackClock "0:01:39"]

1. e4 {[%clk 0:03:00]}  c5 {[%clk 0:02:59]} 2. Nc3 {[%clk 0:03:01]}  d6 {[%clk 0:02:58]} 3. d4 {[%clk 0:02:59]}  cxd4 {[%clk 0:02:58]} 4. Qxd4 {[%clk 0:03:00]}  Nc6 {[%clk 0:02:57]} 5. Qd2 {[%clk 0:03:00]}  Bd7 {[%clk 0:02:57]} 6. b3 {[%clk 0:03:01]}  Nf6 {[%clk 0:02:56]} 7. Bb2 {[%clk 0:03:01]}  e6 {[%clk 0:02:56]} 8. O-O-O {[%clk 0:03:01]}  a6 {[%clk 0:02:56]} 9. Kb1 {[%clk 0:02:59]}  Be7 {[%clk 0:02:55]} 10. f3 {[%clk 0:02:57]}  Qc7 {[%clk 0:02:55]} 11. g4 {[%clk 0:02:57]}  h6 {[%clk 0:02:48]} 12. h4 {[%clk 0:02:56]}  O-O-O {[%clk 0:02:47]} 13. Nge2 {[%clk 0:02:47]}  Ne5 {[%clk 0:02:42]} 14. Qe3 {[%clk 0:02:44]}  Bc6 {[%clk 0:02:40]} 15. Rg1 {[%clk 0:02:43]}  g5 {[%clk 0:02:23]} 16. h5 {[%clk 0:02:31]}  b5 {[%clk 0:02:17]} 17. Nd4 {[%clk 0:02:30]}  Be8 {[%clk 0:02:16]} 18. a4 {[%clk 0:02:21]}  b4 {[%clk 0:01:54]} 19. Bxa6+ {[%clk 0:02:20]}  Kb8 {[%clk 0:01:54]} 20. Na2 {[%clk 0:02:08]}  Qb6 {[%clk 0:01:50]} 21. Bb5 {[%clk 0:02:02]}  d5 {[%clk 0:01:46]} 22. Nc6+ {[%clk 0:01:59]}  Kc7 {[%clk 0:01:39]} 23. Qxb6+ {[%clk 0:01:58]}  Kxb6 {[%clk 0:01:39]} 24. Nxe7 {[%clk 0:01:56]} 1-0


[Site "https://www.chess.com"]

[Event "Titled Tuesday Blitz May 10 Late 2022"]
[White "Batsiashvili, Nino"]
[Black "Qashashvili, Alexandre"]
[WhiteFideId "13602993"]
[BlackFideId "13600842"]
[WhiteElo "2193"]
[BlackElo "2316"]
[Result "1-0"]
[Round "04"]
[TimeControl "180+1"]
[Date "2022.05.11"]
[WhiteClock "0:01:28"]
[BlackClock "0:02:05"]

1. d4 {[%clk 0:02:56]}  c6 {[%clk 0:03:00]} 2. c4 {[%clk 0:02:56]}  d5 {[%clk 0:03:01]} 3. Nf3 {[%clk 0:02:54]}  Nf6 {[%clk 0:03:01]} 4. Nc3 {[%clk 0:02:54]}  Bf5 {[%clk 0:03:00]} 5. Qb3 {[%clk 0:02:53]}  b6 {[%clk 0:03:00]} 6. cxd5 {[%clk 0:02:52]}  Nxd5 {[%clk 0:03:00]} 7. e4 {[%clk 0:02:47]}  Nxc3 {[%clk 0:03:00]} 8. exf5 {[%clk 0:02:47]}  Nd5 {[%clk 0:03:00]} 9. Bc4 {[%clk 0:02:48]}  e6 {[%clk 0:02:59]} 10. fxe6 {[%clk 0:02:47]}  fxe6 {[%clk 0:03:00]} 11. O-O {[%clk 0:02:48]}  Bd6 {[%clk 0:02:56]} 12. Re1 {[%clk 0:02:24]}  O-O {[%clk 0:02:38]} 13. Rxe6 {[%clk 0:02:20]}  Kh8 {[%clk 0:02:38]} 14. Bg5 {[%clk 0:02:18]}  Qd7 {[%clk 0:02:26]} 15. Rae1 {[%clk 0:02:17]}  Nf4 {[%clk 0:02:12]} 16. Bxf4 {[%clk 0:02:02]}  Rxf4 {[%clk 0:02:13]} 17. Rxd6 {[%clk 0:01:37]}  Qxd6 {[%clk 0:02:06]} 18. Re8+ {[%clk 0:01:37]}  Rf8 {[%clk 0:02:05]} 19. Ng5 {[%clk 0:01:28]} 1-0


[Site "https://www.chess.com"]

[Event "Titled Tuesday Blitz May 10 Late 2022"]
[White "Bluebaum, Matthias"]
[Black "Herrera Reyes, Jose Antonio"]
[WhiteFideId "24651516"]
[BlackFideId "2274914"]
[WhiteElo "2556"]
[BlackElo "2361"]
[Result "1-0"]
[Round "04"]
[TimeControl "180+1"]
[Date "2022.05.10"]
[WhiteClock "0:00:36"]
[BlackClock "0:00:11"]

1. d4 {[%clk 0:03:00]}  Nf6 {[%clk 0:02:57]} 2. c4 {[%clk 0:03:01]}  c5 {[%clk 0:02:56]} 3. d5 {[%clk 0:03:01]}  b5 {[%clk 0:02:56]} 4. cxb5 {[%clk 0:03:02]}  a6 {[%clk 0:02:56]} 5. bxa6 {[%clk 0:03:03]}  e6 {[%clk 0:02:56]} 6. Nc3 {[%clk 0:03:03]}  exd5 {[%clk 0:02:56]} 7. Nxd5 {[%clk 0:03:04]}  Be7 {[%clk 0:02:56]} 8. e4 {[%clk 0:03:04]}  O-O {[%clk 0:02:54]} 9. Bc4 {[%clk 0:03:04]}  Bxa6 {[%clk 0:02:51]} 10. Bxa6 {[%clk 0:03:04]}  Rxa6 {[%clk 0:02:45]} 11. Nf3 {[%clk 0:03:04]}  Nxe4 {[%clk 0:02:42]} 12. O-O {[%clk 0:03:04]}  Nf6 {[%clk 0:02:41]} 13. Nxe7+ {[%clk 0:02:53]}  Qxe7 {[%clk 0:02:42]} 14. Bg5 {[%clk 0:02:54]}  Qe4 {[%clk 0:02:37]} 15. Re1 {[%clk 0:02:47]}  Qf5 {[%clk 0:02:36]} 16. Re5 {[%clk 0:02:46]}  Qg4 {[%clk 0:02:27]} 17. Rxc5 {[%clk 0:02:37]}  Ne4 {[%clk 0:02:24]} 18. Rc4 {[%clk 0:02:36]}  Qe6 {[%clk 0:02:08]} 19. Qd3 {[%clk 0:02:20]}  d5 {[%clk 0:01:36]} 20. Rc2 {[%clk 0:02:05]}  Nd7 {[%clk 0:01:21]} 21. Be3 {[%clk 0:02:04]}  f5 {[%clk 0:01:18]} 22. h3 {[%clk 0:02:04]}  Rfa8 {[%clk 0:01:15]} 23. a3 {[%clk 0:01:59]}  Ndf6 {[%clk 0:01:08]} 24. Rac1 {[%clk 0:01:59]}  h6 {[%clk 0:01:07]} 25. Nd4 {[%clk 0:01:58]}  Qe5 {[%clk 0:01:05]} 26. Rc8+ {[%clk 0:01:56]}  Kh7 {[%clk 0:01:04]} 27. f4 {[%clk 0:01:47]}  Qd6 {[%clk 0:00:58]} 28. Nxf5 {[%clk 0:01:45]}  Qd7 {[%clk 0:00:53]} 29. Rxa8 {[%clk 0:01:43]}  Rxa8 {[%clk 0:00:54]} 30. Ng3 {[%clk 0:01:40]}  Qb7 {[%clk 0:00:53]} 31. Nxe4 {[%clk 0:01:38]}  dxe4 {[%clk 0:00:53]} 32. Qd4 {[%clk 0:01:35]}  Qb3 {[%clk 0:00:50]} 33. Rc7 {[%clk 0:01:29]}  Rd8 {[%clk 0:00:48]} 34. Qxf6 {[%clk 0:01:13]}  Qxe3+ {[%clk 0:00:44]} 35. Kh2 {[%clk 0:01:13]}  Rg8 {[%clk 0:00:43]} 36. Re7 {[%clk 0:00:56]}  Qc5 {[%clk 0:00:37]} 37. Qe5 {[%clk 0:00:53]}  Qxe5 {[%clk 0:00:23]} 38. Rxe5 {[%clk 0:00:54]}  Rb8 {[%clk 0:00:23]} 39. b4 {[%clk 0:00:41]}  Ra8 {[%clk 0:00:22]} 40. Ra5 {[%clk 0:00:41]}  Rc8 {[%clk 0:00:22]} 41. Rc5 {[%clk 0:00:39]}  Ra8 {[%clk 0:00:21]} 42. Rc3 {[%clk 0:00:40]}  Kg6 {[%clk 0:00:21]} 43. g4 {[%clk 0:00:39]}  Kf6 {[%clk 0:00:21]} 44. Re3 {[%clk 0:00:40]}  g5 {[%clk 0:00:20]} 45. Kg3 {[%clk 0:00:39]}  Ra7 {[%clk 0:00:16]} 46. b5 {[%clk 0:00:38]}  Ra5 {[%clk 0:00:15]} 47. Rb3 {[%clk 0:00:38]}  Ra4 {[%clk 0:00:12]} 48. b6 {[%clk 0:00:35]}  e3 {[%clk 0:00:12]} 49. fxg5+ {[%clk 0:00:35]}  Kxg5 {[%clk 0:00:12]} 50. b7 {[%clk 0:00:36]}  e2 {[%clk 0:00:11]} 51. Kf2 {[%clk 0:00:36]} 1-0


[Site "https://www.chess.com"]

[Event "Titled Tuesday Blitz May 10 Late 2022"]
[White "Boruchovsky, Avital"]
[Black "Wagner, Dinara"]
[WhiteFideId "2800055"]
[BlackFideId "24157570"]
[WhiteElo "2737"]
[BlackElo "2554"]
[Result "1-0"]
[Round "04"]
[TimeControl "180+1"]
[Date "2022.05.11"]
[WhiteClock "0:00:29"]
[BlackClock "0:00:12"]

1. Nf3 {[%clk 0:03:00]}  d5 {[%clk 0:02:59]} 2. g3 {[%clk 0:02:57]}  c6 {[%clk 0:03:00]} 3. Bg2 {[%clk 0:02:56]}  Bg4 {[%clk 0:02:59]} 4. O-O {[%clk 0:02:56]}  e6 {[%clk 0:02:58]} 5. d3 {[%clk 0:02:54]}  Nf6 {[%clk 0:02:58]} 6. Nbd2 {[%clk 0:02:53]}  Nbd7 {[%clk 0:02:58]} 7. h3 {[%clk 0:02:53]}  Bh5 {[%clk 0:02:56]} 8. e4 {[%clk 0:02:53]}  dxe4 {[%clk 0:02:23]} 9. dxe4 {[%clk 0:02:54]}  e5 {[%clk 0:02:23]} 10. Qe2 {[%clk 0:02:44]}  Bc5 {[%clk 0:02:23]} 11. Rd1 {[%clk 0:02:41]}  O-O {[%clk 0:02:21]} 12. g4 {[%clk 0:02:41]}  Bg6 {[%clk 0:02:21]} 13. Nh4 {[%clk 0:02:38]}  Qc7 {[%clk 0:02:17]} 14. Nb3 {[%clk 0:02:32]}  Bb6 {[%clk 0:02:15]} 15. a4 {[%clk 0:02:32]}  a5 {[%clk 0:02:15]} 16. Nxg6 {[%clk 0:02:12]}  hxg6 {[%clk 0:02:15]} 17. Bd2 {[%clk 0:02:06]}  Nc5 {[%clk 0:02:14]} 18. Nxc5 {[%clk 0:02:05]}  Bxc5 {[%clk 0:02:15]} 19. Bc3 {[%clk 0:02:04]}  Rfd8 {[%clk 0:02:12]} 20. Rxd8+ {[%clk 0:02:03]}  Rxd8 {[%clk 0:02:13]} 21. Rd1 {[%clk 0:02:03]}  Rxd1+ {[%clk 0:02:02]} 22. Qxd1 {[%clk 0:02:04]}  Nd7 {[%clk 0:02:02]} 23. Bf1 {[%clk 0:02:02]}  Nf6 {[%clk 0:01:58]} 24. Qd3 {[%clk 0:01:49]}  Qb6 {[%clk 0:01:51]} 25. Bxe5 {[%clk 0:01:47]}  Bxf2+ {[%clk 0:01:50]} 26. Kg2 {[%clk 0:01:46]}  Be1 {[%clk 0:01:48]} 27. Bd4 {[%clk 0:01:42]}  Qc7 {[%clk 0:01:46]} 28. Be2 {[%clk 0:01:37]}  Bh4 {[%clk 0:01:34]} 29. e5 {[%clk 0:01:26]}  Nd5 {[%clk 0:01:33]} 30. Qe4 {[%clk 0:01:21]}  Bg5 {[%clk 0:01:20]} 31. Kf3 {[%clk 0:01:16]}  Qd7 {[%clk 0:00:38]} 32. Bc4 {[%clk 0:01:09]}  Kh7 {[%clk 0:00:37]} 33. Bf2 {[%clk 0:00:54]}  Nb4 {[%clk 0:00:35]} 34. h4 {[%clk 0:00:48]}  Bd8 {[%clk 0:00:35]} 35. e6 {[%clk 0:00:46]}  fxe6 {[%clk 0:00:34]} 36. h5 {[%clk 0:00:44]}  Qd1+ {[%clk 0:00:34]} 37. Kg2 {[%clk 0:00:41]}  Qxc2 {[%clk 0:00:20]} 38. Qxe6 {[%clk 0:00:35]}  gxh5 {[%clk 0:00:12]} 39. Qg8+ {[%clk 0:00:31]}  Kg6 {[%clk 0:00:12]} 40. Qe8+ {[%clk 0:00:30]}  Kh7 {[%clk 0:00:12]} 41. Qxh5# {[%clk 0:00:29]} 1-0


[Site "https://www.chess.com"]

[Event "Titled Tuesday Blitz May 10 Late 2022"]
[White "Bouget, Alexandre"]
[Black "Butti, Enrique"]
[WhiteFideId "681318"]
[BlackFideId "3700470"]
[WhiteElo "2182"]
[BlackElo "2080"]
[Result "1-0"]
[Round "04"]
[TimeControl "180+1"]
[Date "2022.05.11"]
[WhiteClock "0:01:46"]
[BlackClock "0:01:12"]

1. d4 {[%clk 0:02:58]}  Nf6 {[%clk 0:02:58]} 2. c4 {[%clk 0:02:54]}  e6 {[%clk 0:02:57]} 3. Nc3 {[%clk 0:02:53]}  c5 {[%clk 0:02:57]} 4. d5 {[%clk 0:02:52]}  exd5 {[%clk 0:02:56]} 5. cxd5 {[%clk 0:02:53]}  d6 {[%clk 0:02:56]} 6. Nf3 {[%clk 0:02:53]}  g6 {[%clk 0:02:56]} 7. Nd2 {[%clk 0:02:53]}  Bg7 {[%clk 0:02:47]} 8. e4 {[%clk 0:02:52]}  O-O {[%clk 0:02:46]} 9. a4 {[%clk 0:02:52]}  Re8 {[%clk 0:02:36]} 10. Bd3 {[%clk 0:02:50]}  b6 {[%clk 0:02:35]} 11. O-O {[%clk 0:02:50]}  Ng4 {[%clk 0:02:25]} 12. h3 {[%clk 0:02:48]}  Ne5 {[%clk 0:02:23]} 13. Be2 {[%clk 0:02:48]}  g5 {[%clk 0:02:16]} 14. Nc4 {[%clk 0:02:45]}  Nxc4 {[%clk 0:02:06]} 15. Bxc4 {[%clk 0:02:46]}  Nd7 {[%clk 0:02:06]} 16. Qh5 {[%clk 0:02:42]}  Ne5 {[%clk 0:01:55]} 17. Bb5 {[%clk 0:02:38]}  h6 {[%clk 0:01:45]} 18. Bxe8 {[%clk 0:02:36]}  Qxe8 {[%clk 0:01:44]} 19. f4 {[%clk 0:02:36]}  gxf4 {[%clk 0:01:44]} 20. Bxf4 {[%clk 0:02:37]}  Qf8 {[%clk 0:01:26]} 21. Nb5 {[%clk 0:02:25]}  a6 {[%clk 0:01:23]} 22. Nc7 {[%clk 0:01:48]}  Ra7 {[%clk 0:01:22]} 23. Ne6 {[%clk 0:01:48]}  Qe7 {[%clk 0:01:12]} 24. Nxg7 {[%clk 0:01:46]} 1-0


[Site "https://www.chess.com"]

[Event "Titled Tuesday Blitz May 10 Late 2022"]
[White "Constantinou, Peter"]
[Black "Gatterer, Florian"]
[WhiteFideId "413038"]
[BlackFideId "811688"]
[WhiteElo "2230"]
[BlackElo "2218"]
[Result "0-1"]
[Round "04"]
[TimeControl "180+1"]
[Date "2022.05.11"]
[WhiteClock "0:02:31"]
[BlackClock "0:01:48"]

1. b3 {[%clk 0:03:00]}  e5 {[%clk 0:02:59]} 2. Bb2 {[%clk 0:03:01]}  Nc6 {[%clk 0:03:00]} 3. c4 {[%clk 0:03:01]}  Nf6 {[%clk 0:03:00]} 4. e3 {[%clk 0:03:01]}  a6 {[%clk 0:02:57]} 5. a3 {[%clk 0:02:59]}  d5 {[%clk 0:02:56]} 6. cxd5 {[%clk 0:02:59]}  Nxd5 {[%clk 0:02:56]} 7. Qc2 {[%clk 0:03:00]}  Be6 {[%clk 0:02:54]} 8. Nf3 {[%clk 0:03:00]}  Bd6 {[%clk 0:02:53]} 9. Be2 {[%clk 0:02:59]}  h5 {[%clk 0:02:53]} 10. d4 {[%clk 0:02:58]}  exd4 {[%clk 0:02:48]} 11. Nxd4 {[%clk 0:02:59]}  Nxd4 {[%clk 0:02:48]} 12. Bxd4 {[%clk 0:02:59]}  Qg5 {[%clk 0:02:45]} 13. g3 {[%clk 0:02:57]}  h4 {[%clk 0:02:44]} 14. Bf3 {[%clk 0:02:44]}  hxg3 {[%clk 0:02:39]} 15. hxg3 {[%clk 0:02:45]}  Rxh1+ {[%clk 0:02:35]} 16. Bxh1 {[%clk 0:02:46]}  Qh6 {[%clk 0:02:17]} 17. Bg2 {[%clk 0:02:44]}  Qh2 {[%clk 0:02:09]} 18. Kf1 {[%clk 0:02:44]}  O-O-O {[%clk 0:01:58]} 19. Nd2 {[%clk 0:02:38]}  Bh3 {[%clk 0:01:57]} 20. Qe4 {[%clk 0:02:34]}  Qh1+ {[%clk 0:01:52]} 21. Ke2 {[%clk 0:02:31]}  Qxg2 {[%clk 0:01:48]} 0-1


[Site "https://www.chess.com"]